bitfinex-derivatives/quotes_BNBF0:USTF0_20260221
["timestamp","ask_amount","ask_price","bid_price","bid_amount"]
[1771646563235,1.18872736,625.76,624.98,1.19272826]
[1771646563938,1.18872736,625.76,624.96,1.746]
[1771646563939,1.18872736,625.73,624.96,1.746]
[1771646565337,1.18872736,625.72,624.96,1.746]
[1771646565837,1.18872736,625.73,624.96,1.746]
[1771646566138,1.18872736,625.72,624.96,2.93872826]
[1771646567838,1.18872736,625.68,624.96,1.746]
[1771646571544,1.18872736,625.59,624.96,1.746]
[1771646572342,1.18872736,625.6,624.96,1.746]
[1771646575342,1.18872736,625.61,624.96,1.746]
[1771646578442,1.18872736,625.62,624.96,1.746]
[1771646582148,1.18872736,625.63,624.96,1.746]
[1771646582648,1.18872736,625.64,624.96,1.746]
[1771646583449,1.18872736,625.65,624.96,1.746]
[1771646584144,1.18872736,625.66,624.96,1.746]
[1771646584349,1.18872736,625.79,624.97,1.19272826]
[1771646585148,1.18872736,625.78,624.97,1.19272826]
[1771646587850,1.18872736,625.8,624.99,1.19272826]
[1771646589152,1.5924466,625.91,624.99,1.19272826]
[1771646589153,1.18872736,625.79,624.99,1.19272826]
[1771646589355,1.18872736,625.79,625.0,1.627]
[1771646592257,1.18872736,625.79,625.0,2.81972826]
[1771646594155,1.18872736,625.78,625.0,2.81972826]
[1771646596360,1.18872736,625.78,625.01,1.19272826]
[1771646598360,1.18872736,625.77,625.01,1.19272826]
[1771646600264,1.18872736,625.77,625.02,1.19272826]
[1771646601764,1.18872736,625.76,625.02,1.19272826]
[1771646603362,1.18872736,625.76,625.03,1.19272826]
[1771646604265,1.18872736,625.75,625.03,1.19272826]
[1771646606166,1.18872736,625.75,625.04,1.19272826]
[1771646618166,1.18872736,625.74,625.04,1.19272826]
[1771646620168,1.18872736,625.74,625.0,1.627]
[1771646620169,1.18872736,625.74,625.05,1.19272826]
[1771646620369,1.18872736,625.73,625.05,1.19272826]
[1771646622371,1.18872736,625.72,625.06,1.19272826]
[1771646624270,1.18872736,625.71,625.07,1.19272826]
[1771646626475,1.18872736,625.7,625.08,1.19272826]
[1771646627177,1.18872736,625.69,625.09,1.19272826]
[1771646628178,1.18872736,625.69,625.0,1.627]
[1771646628179,1.18872736,625.68,625.1,1.19272826]
[1771646629176,1.18872736,625.66,625.12,1.19272826]
[1771646631177,1.18872736,625.65,625.13,1.19272826]
[1771646645994,1.18872736,625.65,625.14,1.783]
[1771646672106,1.18872736,625.6,625.14,1.783]
[1771646672506,1.18872736,625.61,625.14,1.783]
[1771646673406,1.18872736,625.6,625.14,1.783]
[1771646674010,1.18872736,625.57,625.14,1.783]
[1771646674410,1.18872736,625.58,625.14,1.783]
[1771646675312,1.18872736,625.59,625.14,1.783]
[1771646675611,1.18872736,625.53,625.14,1.783]
[1771646676309,1.18872736,625.54,625.14,1.783]
[1771646678409,1.18872736,625.55,625.14,1.783]
[1771646679414,1.18872736,625.56,625.14,1.783]
[1771646680117,1.18872736,625.56,624.92,1.19272826]
[1771646680316,1.18872736,625.56,624.91,1.19272826]
[1771646682319,1.18872736,625.57,624.9,1.19272826]
[1771646682518,1.18872736,625.57,624.92,1.35]
[1771646685322,1.18872736,625.58,624.92,1.35]
[1771646685622,1.18872736,625.57,624.92,1.35]
[1771646686323,1.18872736,625.58,624.92,1.35]
[1771646689925,1.18872736,625.57,624.92,1.35]
[1771646692725,1.18872736,625.59,624.92,1.35]
[1771646695930,1.18872736,625.62,624.92,2.54272826]
[1771646699334,1.18872736,625.61,624.92,2.54272826]
[1771646704233,1.18872736,625.61,624.93,1.19272826]
[1771646706237,1.18872736,625.57,624.92,1.35]
[1771646707037,1.18872736,625.58,624.92,1.35]
[1771646707238,1.18872736,625.57,624.92,1.35]
[1771646710241,1.18872736,625.56,624.92,1.35]
[1771646712242,1.18872736,625.56,624.92,2.54272826]
[1771646713345,1.18872736,625.55,624.92,2.54272826]
[1771646714352,1.18872736,625.55,624.93,1.19272826]
[1771646715445,1.18872736,625.54,624.94,1.19272826]
[1771646716447,1.18872736,625.53,624.94,1.19272826]
[1771646717452,1.18872736,625.53,624.95,1.19272826]
[1771646718448,1.18872736,625.52,624.95,1.19272826]
[1771646719148,1.18872736,625.53,624.97,1.19272826]
[1771646727357,1.18872736,625.54,624.98,1.19272826]
[1771646727655,1.18872736,625.55,624.99,1.19272826]
[1771646727855,1.18872736,625.58,625.03,1.19272826]
[1771646728255,0.27822527,626.02,625.05,1.19272826]
[1771646728256,1.18872736,625.61,625.05,1.19272826]
[1771646729256,1.18872736,625.62,625.04,1.19272826]
[1771646731255,1.18872736,625.63,625.03,1.19272826]
[1771646735158,1.18872736,625.65,625.04,1.19272826]
[1771646736562,1.18872736,625.66,625.05,1.19272826]
[1771646736963,1.18872736,625.67,625.06,1.19272826]
[1771646738164,1.18872736,625.69,625.07,1.19272826]
[1771646739165,1.18872736,625.7,625.07,1.19272826]
[1771646740364,1.18872736,625.7,625.06,1.19272826]
[1771646743464,1.18872736,625.71,625.06,1.19272826]
[1771646744268,1.18872736,625.71,625.05,1.19272826]
[1771646750176,1.18872736,625.73,625.06,1.19272826]
[1771646750775,1.18872736,625.77,625.1,1.19272826]
[1771646751071,1.18872736,625.79,625.12,1.19272826]
[1771646751271,1.18872736,625.8,625.12,1.19272826]
[1771646752473,1.18872736,625.83,625.15,1.19272826]
[1771646753175,1.18872736,625.84,625.14,1.19272826]
[1771646755276,1.18872736,625.85,625.14,1.19272826]
[1771646756177,1.18872736,625.85,625.13,1.19272826]
[1771646764578,0.27821749,626.06,624.91,0.27823417]
[1771646764579,1.18872736,625.86,625.14,1.19272826]
[1771646764782,1.18872736,625.87,625.14,1.19272826]
[1771646765278,1.18872736,625.86,625.14,1.19272826]
[1771646766981,1.18872736,625.87,625.15,1.19272826]
[1771646767283,1.18872736,625.87,625.15,3.01972826]
[1771646769183,1.18872736,625.87,625.16,1.19272826]
[1771646770286,1.18872736,625.86,625.16,1.19272826]
[1771646772291,1.18872736,625.86,625.17,1.19272826]
[1771646775193,1.18872736,625.85,625.17,1.19272826]
[1771646779194,1.18872736,625.85,625.18,1.19272826]
[1771646781298,1.18872736,625.84,625.18,1.19272826]
[1771646783500,1.18872736,625.84,625.19,1.19272826]
[1771646786203,1.18872736,625.83,625.19,1.19272826]
[1771646788302,1.18872736,625.83,625.2,1.19272826]
[1771646789405,1.18872736,625.82,625.2,1.19272826]
[1771646789909,1.18872736,625.85,625.22,1.19272826]
[1771646790106,1.18872736,625.85,625.23,1.19272826]
[1771646790603,1.18872736,625.86,625.24,1.19272826]
[1771646791306,1.18872736,625.86,625.25,1.19272826]
[1771646792305,1.18872736,625.85,625.25,1.19272826]
[1771646793304,1.18872736,625.85,625.26,1.19272826]
[1771646793610,1.5924466,625.96,625.15,1.827]
[1771646793906,1.19376836,625.85,625.26,1.19791424]
[1771646794311,1.19376836,625.84,625.26,1.19791424]
[1771646795209,1.19376836,625.84,625.27,1.19791424]
[1771646795812,1.19376836,625.9,625.33,1.19791424]
[1771646796412,1.19376836,625.91,625.33,1.19791424]
[1771646798410,1.19376836,625.92,625.32,1.19791424]
[1771646800311,1.19376836,625.92,625.31,1.19791424]
[1771646801416,1.19376836,625.93,625.31,1.19791424]
[1771646805317,1.19376836,625.93,625.3,1.19791424]
[1771646808320,1.19376836,625.94,625.3,1.19791424]
[1771646811820,1.19376836,625.95,625.31,1.19791424]
[1771646812017,1.19376836,626.06,625.42,1.19791424]
[1771646812320,1.19376836,626.02,625.37,1.19791424]
[1771646813422,1.19376836,626.03,625.37,1.19791424]
[1771646815319,1.19376836,626.04,625.36,1.19791424]
[1771646819221,1.19376836,626.06,625.37,1.19791424]
[1771646820322,1.19376836,626.07,625.38,1.19791424]
[1771646820523,1.5924466,626.18,625.04,1.322]
[1771646820524,1.19376836,626.08,625.39,1.19791424]
[1771646820721,1.19376836,626.11,625.42,1.19791424]
[1771646821527,1.19376836,626.12,625.42,1.19791424]
[1771646822128,1.19376836,626.12,625.41,1.19791424]
[1771646823031,1.19376836,626.13,625.42,1.19791424]
[1771646823225,1.19376836,626.14,625.42,1.19791424]
[1771646824225,1.19376836,626.14,625.41,1.19791424]
[1771646827028,1.19376836,626.15,625.41,1.19791424]
[1771646828329,1.19376836,626.19,625.45,1.19791424]
[1771646828633,1.19376836,626.22,625.48,1.19791424]
[1771646829230,1.19376836,626.23,625.48,1.19791424]
[1771646829532,1.19376836,626.22,625.48,1.19791424]
[1771646830332,1.19376836,626.23,625.47,1.19791424]
[1771646841041,1.19376836,626.2,625.44,1.19791424]
[1771646844142,1.19376836,626.19,625.44,1.19791424]
[1771646845347,1.19376836,626.18,625.44,1.19791424]
[1771646845546,1.19376836,626.18,624.91,0.27823417]
[1771646845547,1.19376836,626.15,625.4,1.19791424]
[1771646846343,1.19376836,626.15,625.41,1.19791424]
[1771646848248,1.19376836,626.14,625.41,1.19791424]
[1771646849245,1.19376836,626.14,625.42,1.19791424]
[1771646851248,1.19376836,626.13,625.42,1.19791424]
[1771646851448,1.19376836,626.13,625.43,1.19791424]
[1771646851951,1.19376836,626.13,625.42,1.19791424]
[1771646852152,1.19376836,626.11,625.4,1.19791424]
[1771646852351,1.19376836,626.1,625.4,1.19791424]
[1771646853353,1.19376836,626.1,625.41,1.19791424]
[1771646854458,1.19376836,626.09,625.42,1.19791424]
[1771646856261,1.19376836,626.08,625.42,1.19791424]
[1771646856461,1.19289319,626.08,625.43,1.19620473]
[1771646857257,1.19289319,626.07,625.43,1.19620473]
[1771646861259,1.19289319,626.07,625.44,1.19620473]
[1771646862263,1.19289319,626.06,625.44,1.19620473]
[1771646865262,1.19289319,626.07,625.45,1.19620473]
[1771646878277,1.19289319,626.06,625.46,1.19620473]
[1771646881078,1.19289319,626.08,625.48,1.19620473]
[1771646881275,1.19289319,626.07,625.48,1.19620473]
[1771646884176,1.19289319,626.06,625.49,1.19620473]
[1771646885281,1.19289319,626.05,625.48,1.19620473]
[1771646886381,1.19289319,626.04,625.48,1.19620473]
[1771646886579,1.19289319,626.01,625.45,1.19620473]
[1771646887079,1.19289319,626.0,625.43,1.19620473]
[1771646890284,1.19289319,626.0,625.44,1.19620473]
[1771646890481,1.19289319,626.0,625.43,1.19620473]
[1771646899198,1.19289319,626.01,625.43,1.19620473]
[1771646899400,1.19289319,625.98,625.4,1.19620473]
[1771646901300,1.19289319,625.99,625.4,1.19620473]
[1771646903499,1.19289319,625.99,625.39,1.19620473]
[1771646910009,1.19289319,625.96,625.35,1.19620473]
[1771646911409,1.19289319,625.96,625.34,1.19620473]
[1771646913615,1.19289319,625.9,625.28,2.64220473]
[1771646914415,1.19289319,625.91,625.28,2.64220473]
[1771646915420,1.19289319,625.91,625.28,1.446]
[1771646916319,1.19289319,625.92,625.28,1.446]
[1771646917216,2.38866991,626.14,625.28,1.446]
[1771646917217,1.19289319,625.91,625.28,1.446]
[1771646918622,1.19289319,625.92,625.28,1.446]
[1771646926324,1.19289319,625.93,625.28,1.446]
[1771646926625,1.19289319,625.92,625.28,1.446]
[1771646934128,1.19289319,625.92,625.26,1.19620473]
[1771646936629,1.19289319,625.91,625.25,1.19620473]
[1771646940031,1.19289319,625.88,625.23,1.19620473]
[1771646942733,1.19289319,625.9,625.26,1.19620473]
[1771646946339,1.19289319,625.9,625.27,1.19620473]
[1771646947139,1.19289319,625.88,625.25,1.19620473]
[1771646947341,1.19289319,625.88,625.26,1.19620473]
[1771646949740,1.19289319,625.89,625.27,1.19620473]
[1771646949940,1.19289319,625.91,625.29,1.19620473]
[1771646950338,1.19289319,625.91,625.3,1.19620473]
[1771646951442,1.19289319,625.9,625.3,1.19620473]
[1771646953341,1.19289319,625.89,625.31,1.19620473]
[1771646956442,1.19289319,625.88,625.32,1.19620473]
[1771646961246,1.19289319,625.94,625.38,1.19620473]
[1771646962155,1.19289319,625.94,625.37,1.19620473]
[1771646963051,1.19289319,625.97,625.4,1.19620473]
[1771646963252,1.5924466,626.09,625.4,1.19620473]
[1771646963253,1.19289319,625.98,625.4,1.19620473]
[1771646963651,1.19289319,625.98,625.28,1.5972651]
[1771646963652,1.19289319,625.98,625.39,1.19620473]
[1771646964155,1.19289319,625.99,625.39,1.19620473]
[1771646965357,1.19289319,626.0,625.4,1.19620473]
[1771646966353,1.19289319,626.02,625.4,1.19620473]
[1771646968259,1.19289319,626.03,625.39,1.19620473]
[1771646971060,1.19289319,626.04,625.38,1.19620473]
[1771646975165,1.19289319,626.05,625.38,1.19620473]
[1771646975364,1.19289319,626.05,625.37,1.19620473]
[1771646975664,1.19289319,626.09,625.42,1.19620473]
[1771646976067,1.19289319,626.09,625.41,1.19620473]
[1771646978167,1.5924466,626.21,625.41,1.19620473]
[1771646978168,1.19289319,626.1,625.41,1.19620473]
[1771646980167,1.19289319,626.1,625.4,1.19620473]
[1771646984174,1.19289319,626.11,625.4,1.19620473]
[1771646986277,1.19289319,626.1,625.4,1.19620473]
[1771646991076,1.19289319,626.1,625.41,1.19620473]
[1771646993179,1.19289319,626.09,625.41,1.19620473]
[1771646996081,1.19289319,626.09,625.42,1.19620473]
[1771646998381,1.19289319,626.08,625.42,1.19620473]
[1771646998983,1.19289319,626.07,625.4,1.19620473]
[1771646999187,1.19289319,626.05,625.39,1.19620473]
[1771647000088,1.19289319,626.05,625.4,1.19620473]
[1771647001687,1.19289319,626.05,625.41,1.19620473]
[1771647001888,0.27803411,626.46,625.42,1.19620473]
[1771647001889,1.5924466,626.18,625.42,1.19620473]
[1771647002289,1.19205414,626.06,625.42,1.19620473]
[1771647002585,1.19205414,626.06,625.43,1.19620473]
[1771647004186,1.19205414,626.05,625.43,1.19620473]
[1771647004386,1.19205414,626.05,625.44,1.19620473]
[1771647005289,1.19205414,626.04,625.44,1.19620473]
[1771647006087,1.19205414,626.04,625.45,1.19620473]
[1771647007188,1.19205414,626.04,625.47,1.19620473]
[1771647008491,1.19205414,626.03,625.46,1.19620473]
[1771647009890,1.19205414,626.01,625.43,1.19620473]
[1771647010094,1.19205414,626.0,625.44,1.19620473]
[1771647012290,1.5924466,626.12,625.32,1.5972651]
[1771647012490,1.19360007,626.0,625.44,1.19822671]
[1771647019401,1.19360007,626.0,625.43,1.19822671]
[1771647020198,1.19360007,626.0,625.44,1.19822671]
[1771647020495,1.19360007,626.0,625.43,1.19822671]
[1771647022101,1.19360007,626.01,625.43,1.19822671]
[1771647032501,1.19360007,625.94,625.37,1.19822671]
[1771647033503,1.19360007,625.95,625.37,1.19822671]
[1771647034304,1.19360007,625.95,625.36,1.19822671]
[1771647037508,1.19360007,625.96,625.36,1.19822671]
[1771647039308,1.19360007,625.96,625.35,1.19822671]
[1771647039509,1.19360007,625.96,625.36,1.19822671]
[1771647040310,1.19360007,625.96,625.35,1.19822671]
[1771647046911,1.19360007,625.95,625.34,1.19822671]
[1771647051924,1.19360007,625.93,625.32,1.19822671]
[1771647056421,1.19360007,625.94,625.32,1.19822671]
[1771647058328,1.19360007,625.94,625.33,1.872]
[1771647062629,1.19360007,625.94,625.33,3.07022671]
[1771647068434,1.19360007,625.93,625.33,3.07022671]
[1771647070339,1.19360007,625.93,625.34,1.19822671]
[1771647073535,1.19360007,625.92,625.34,1.19822671]
[1771647074335,1.19360007,625.92,625.35,1.19822671]
[1771647075936,1.19360007,625.92,625.36,1.823]
[1771647076440,1.19360007,625.91,625.36,1.823]
[1771647077840,1.19360007,625.91,625.36,3.02122671]
[1771647081446,1.19360007,625.9,625.36,3.02122671]
[1771647082849,1.19360007,625.89,625.36,1.823]
[1771647083048,1.19360007,625.8,625.36,1.823]
[1771647083250,1.19360007,625.81,625.36,1.823]
[1771647084054,1.19360007,625.85,625.36,1.823]
[1771647085153,1.19360007,625.86,625.36,1.823]
[1771647091156,1.19360007,625.87,625.36,1.823]
[1771647091457,1.19360007,625.86,625.36,1.823]
[1771647091851,1.5924466,625.98,625.36,1.823]
[1771647092054,1.19381855,625.86,625.36,1.823]
[1771647092249,1.19381855,625.87,625.36,1.823]
[1771647100662,1.19381855,625.88,625.36,1.823]
[1771647101464,1.19381855,625.89,625.36,1.823]
[1771647104567,1.19381855,625.89,625.28,1.19780446]
[1771647110068,1.19381855,625.88,625.28,1.19780446]
[1771647111371,1.19381855,625.91,625.31,1.19780446]
[1771647115080,1.19381855,625.9,625.31,1.19780446]
[1771647120186,1.19381855,625.9,625.32,1.19780446]
[1771647120884,1.19381855,625.9,625.31,1.19780446]
[1771647121082,1.19381855,625.9,625.32,1.19780446]
[1771647125184,1.19381855,625.89,625.32,1.19780446]
[1771647125384,1.19381855,625.9,625.32,1.19780446]
[1771647126185,1.19381855,625.89,625.32,1.19780446]
[1771647127491,1.19381855,625.88,625.31,1.19780446]
[1771647138099,1.19381855,625.88,625.32,1.19780446]
[1771647139996,1.19381855,625.87,625.32,1.19780446]
[1771647147102,1.5924466,625.98,625.21,1.5972651]
[1771647147402,1.19546651,625.87,625.32,1.19891409]
[1771647150107,1.19546651,625.87,625.33,1.19891409]
[1771647151208,1.19546651,625.86,625.33,1.19891409]
[1771647156112,1.19546651,625.86,625.34,1.19891409]
[1771647157415,1.19546651,625.85,625.33,1.19891409]
[1771647180933,1.19546651,625.86,625.33,1.19891409]
[1771647181130,1.19546651,625.88,625.35,1.19891409]
[1771647187541,1.19546651,625.9,625.36,1.19891409]
[1771647196142,1.19546651,625.91,625.36,1.19891409]
[1771647202847,1.19546651,625.91,625.37,1.19891409]
[1771647206454,1.19546651,625.93,625.38,1.19891409]
[1771647213760,1.19546651,625.93,625.11,0.27813966]
[1771647213761,1.19546651,625.94,625.39,1.19891409]
[1771647214261,1.19546651,625.94,625.38,1.19891409]
[1771647215466,1.19546651,625.95,625.39,1.19891409]
[1771647226370,1.19546651,625.97,625.4,1.19891409]
[1771647227867,1.19546651,626.03,625.45,1.19891409]
[1771647228070,1.19546651,626.03,625.46,1.19891409]
[1771647229366,1.19546651,626.04,625.45,1.19891409]
[1771647231170,1.19546651,626.05,625.44,1.19891409]
[1771647235773,1.19546651,626.06,625.44,1.19891409]
[1771647236272,1.19546651,626.06,625.32,1.5972651]
[1771647236273,1.19546651,626.06,625.43,1.19891409]
[1771647245587,1.19546651,626.1,625.47,1.19891409]
[1771647247589,1.19546651,626.11,625.47,1.19891409]
[1771647252385,1.19546651,626.12,625.48,1.19891409]
[1771647262191,1.19546651,626.11,625.48,1.19891409]
[1771647265389,1.19546651,626.11,625.49,1.19891409]
[1771647268293,1.19546651,626.1,625.5,1.54]
[1771647269197,1.19546651,626.1,625.5,2.73891409]
[1771647271193,1.19546651,626.09,625.5,2.73891409]
[1771647272094,1.19546651,626.09,625.51,1.19891409]
[1771647277100,1.19546651,626.08,625.51,1.19891409]
[1771647283309,1.19546651,626.08,625.52,1.19891409]
[1771647286309,1.19546651,626.07,625.52,1.19891409]
[1771647289317,1.19546651,626.07,625.53,1.19891409]
[1771647290618,1.19546651,626.06,625.53,1.19891409]
[1771647296019,2.38454706,626.28,625.52,1.19891409]
[1771647296020,1.19546651,626.05,625.52,1.19891409]
[1771647299026,1.19546651,626.04,625.51,1.19891409]
[1771647299325,1.59202509,626.15,625.5,1.54]
[1771647299621,1.19502372,626.04,625.51,1.1990234]
[1771647304228,1.19502372,626.05,625.51,1.1990234]
[1771647307833,1.19502372,626.03,625.5,1.54]
[1771647327242,1.19502372,626.03,625.48,1.1990234]
[1771647329844,1.19502372,626.03,625.49,1.201]
[1771647336451,1.19502372,626.02,625.49,1.201]
[1771647343459,1.19502372,626.02,625.49,2.4000234]
[1771647359467,1.19502372,626.03,625.5,1.1990234]
[1771647360268,1.19502372,626.04,625.51,1.1990234]
[1771647360769,1.19502372,626.07,625.54,1.1990234]
[1771647361270,1.19502372,626.08,625.56,1.1990234]
[1771647361469,1.19502372,626.08,625.49,1.201]
[1771647361470,1.19502372,626.1,625.55,1.1990234]
[1771647362172,1.19502372,626.1,625.54,1.1990234]
[1771647362369,1.19502372,626.12,625.56,1.1990234]
[1771647363271,1.19502372,626.12,625.55,1.1990234]
[1771647364175,1.59202509,626.23,625.55,1.1990234]
[1771647364176,1.19502372,626.13,625.55,1.1990234]
[1771647365270,1.19502372,626.13,625.54,1.1990234]
[1771647366075,1.19502372,626.15,625.56,1.1990234]
[1771647367174,1.19502372,626.15,625.55,1.1990234]
[1771647367974,1.19502372,626.17,625.56,1.1990234]
[1771647371179,1.19502372,626.18,625.55,1.1990234]
[1771647373174,0.27804188,626.38,625.57,1.1990234]
[1771647373175,1.19502372,626.2,625.57,1.1990234]
[1771647374278,1.19502372,626.2,625.56,1.1990234]
[1771647378782,1.19502372,626.21,625.56,1.1990234]
[1771647379986,1.19502372,626.21,625.57,1.652]
[1771647387891,1.19502372,626.22,625.57,2.8510234]
[1771647390794,1.19502372,626.1,625.57,1.652]
[1771647394992,1.19502372,626.07,625.57,1.652]
[1771647399899,1.19502372,626.06,625.57,1.652]
[1771647403201,1.19502372,626.07,625.57,1.652]
[1771647408200,1.19502372,626.07,625.38,1.1990234]
[1771647409199,1.19502372,626.05,625.35,1.1990234]
[1771647409406,1.19502372,626.03,625.33,1.1990234]
[1771647410206,1.19502372,626.04,625.33,1.1990234]
[1771647413209,1.19502372,626.04,625.32,1.1990234]
[1771647414209,1.19502372,626.05,625.32,1.1990234]
[1771647425211,1.19502372,626.04,625.33,1.1990234]
[1771647429218,1.19502372,626.03,625.34,1.1990234]
[1771647431215,1.59202509,626.14,625.35,1.1990234]
[1771647431216,1.19502372,626.02,625.35,1.1990234]
[1771647433221,1.19502372,626.01,625.36,1.1990234]
[1771647434323,1.19502372,626.0,625.37,1.1990234]
[1771647435221,1.19502372,625.99,625.38,1.1990234]
[1771647436321,1.19502372,625.98,625.38,1.1990234]
[1771647437123,1.19502372,625.98,625.39,1.1990234]
[1771647440226,1.19502372,625.97,625.39,1.1990234]
[1771647441231,1.19502372,625.97,625.4,1.1990234]
[1771647444438,1.19502372,626.0,625.43,1.1990234]
[1771647447933,2.38454706,626.22,625.25,0.27804188]
[1771647448231,0.27804188,626.38,625.25,0.27804188]
[1771647449737,1.19345533,625.99,625.43,1.19842198]
[1771647453251,1.19345533,625.98,625.43,1.19842198]
[1771647457152,1.19345533,625.99,625.43,1.19842198]
[1771647457855,1.19345533,625.97,625.43,1.19842198]
[1771647458155,1.19345533,625.97,625.3,1.59789598]
[1771647458156,1.19345533,625.97,625.41,1.19842198]
[1771647474470,1.19345533,625.97,625.42,1.19842198]
[1771647484184,1.19345533,625.96,625.42,1.19842198]
[1771647488182,1.19345533,625.95,625.42,1.19842198]
[1771647488482,1.19345533,625.94,625.41,1.19842198]
[1771647496996,1.19345533,625.95,625.42,1.19842198]
[1771647507306,1.19345533,625.95,625.41,1.19842198]
[1771647507608,1.19345533,625.89,625.35,1.19842198]
[1771647508207,1.19345533,625.89,625.34,1.19842198]
[1771647509205,1.19345533,625.88,625.33,2.049]
[1771647510209,1.19345533,625.89,625.33,2.049]
[1771647512309,1.19345533,625.9,625.33,2.049]
[1771647516514,1.19345533,625.9,625.3,1.19842198]
[1771647517114,1.19345533,625.91,625.3,1.19842198]
[1771647520213,1.19345533,625.9,625.28,1.19842198]
[1771647520717,1.19345533,625.9,625.29,1.242]
[1771647522715,1.19345533,625.86,625.29,1.242]
[1771647523217,1.19345533,625.87,625.29,1.242]
[1771647523717,0.27810965,626.15,625.29,1.242]
[1771647523718,1.19345533,625.78,625.29,1.242]
[1771647524218,1.19345533,625.79,625.29,1.242]
[1771647524818,1.19345533,625.75,625.29,1.242]
[1771647525018,1.19345533,625.72,625.29,1.242]
[1771647525318,1.19345533,625.74,625.29,1.242]
[1771647525915,1.19345533,625.71,625.29,1.242]
[1771647526117,1.19345533,625.69,625.29,1.242]
[1771647526312,1.19345533,625.65,625.29,1.242]
[1771647526816,1.19345533,625.63,625.29,1.242]
[1771647527219,1.19345533,625.64,625.29,1.242]
[1771647527416,1.19345533,625.6,625.29,1.242]
[1771647528217,1.19345533,625.62,625.29,1.242]
[1771647529124,1.19345533,625.63,625.29,1.242]
[1771647530226,1.19345533,625.65,625.29,1.242]
[1771647531222,1.19345533,625.66,625.29,1.242]
[1771647532121,1.19345533,625.67,625.29,1.242]
[1771647532622,1.59127378,625.78,625.29,1.242]
[1771647532623,1.19345533,625.69,625.29,1.242]
[1771647534221,1.19345533,625.7,625.29,1.242]
[1771647535226,1.19345533,625.71,625.29,1.242]
[1771647535527,1.19345533,625.7,625.29,1.242]
[1771647535727,1.19345533,625.68,625.29,1.242]
[1771647536132,1.19345533,625.69,625.29,1.242]
[1771647538434,1.19345533,625.7,625.29,1.242]
[1771647540936,1.1819471,625.7,625.29,1.242]
[1771647541336,1.1819471,625.71,625.29,1.242]
[1771647545134,1.1819471,625.72,625.29,1.242]
[1771647548035,1.18197603,625.71,625.29,1.242]
[1771647548239,1.18197603,625.7,625.29,1.242]
[1771647548640,1.18197603,625.77,625.29,1.242]
[1771647549235,1.18197603,625.76,625.29,1.242]
[1771647550039,1.18197603,625.73,625.29,1.242]
[1771647551142,1.18197603,625.72,625.29,1.242]
[1771647551442,1.18197603,625.75,625.29,1.242]
[1771647553643,1.18197603,625.79,625.29,1.242]
[1771647554245,1.18197603,625.78,625.29,1.242]
[1771647555051,1.18197603,625.8,625.29,1.242]
[1771647555350,1.18197603,625.83,625.29,1.242]
[1771647557259,1.18197603,625.82,625.29,1.242]
[1771647559255,1.18197603,625.81,625.29,1.242]
[1771647559850,1.18197603,625.84,625.29,1.242]
[1771647560353,1.18197603,625.87,625.29,1.242]
[1771647562354,1.18197603,625.86,625.29,1.242]
[1771647563354,1.18197603,625.85,625.29,1.242]
[1771647563650,1.18197603,625.85,625.0,1.18847745]
[1771647563854,1.18197603,625.87,625.01,1.18847745]
[1771647564051,1.18197603,625.87,625.02,1.18847745]
[1771647564254,1.18197603,625.87,625.03,1.18847745]
[1771647564451,0.27810965,626.15,625.04,1.18847745]
[1771647564452,1.18197603,625.88,625.04,1.18847745]
[1771647565157,1.18197603,625.87,625.05,1.18847745]
[1771647566154,1.18197603,625.86,625.06,1.965]
[1771647566358,1.18197603,625.87,625.06,1.965]
[1771647567357,1.18197603,625.86,625.06,3.15347745]
[1771647572361,1.18197603,625.87,625.06,1.965]
[1771647573760,1.18197603,625.98,625.16,1.18847745]
[1771647575365,1.18197603,625.99,625.15,1.18847745]
[1771647577361,1.18197603,626.0,625.14,1.18847745]
[1771647578065,1.18197603,626.0,625.06,1.965]
[1771647578066,1.18197603,626.01,625.16,1.18847745]
[1771647578361,1.18197603,626.01,625.15,1.18847745]
[1771647579265,1.18197603,626.02,625.15,1.18847745]
[1771647586374,1.18197603,626.01,625.15,1.18847745]
[1771647587371,1.18197603,626.01,625.16,1.18847745]
[1771647589380,1.18197603,626.0,625.16,1.18847745]
[1771647590277,1.18197603,626.0,625.17,1.18847745]
[1771647591279,1.18197603,625.99,625.18,1.18847745]
[1771647592476,1.18197603,625.98,625.18,1.18847745]
[1771647593279,1.59127378,626.09,624.73,0.27828201]
[1771647593280,1.18197603,625.88,625.08,1.18847745]
[1771647593475,1.18197603,625.87,625.09,1.18847745]
[1771647594280,1.18197603,625.86,625.1,1.18847745]
[1771647595280,1.18197603,625.86,625.11,1.18847745]
[1771647595880,1.18197603,625.86,625.12,1.3]
[1771647596381,1.18197603,625.85,625.12,1.3]
[1771647597282,1.18197603,625.84,625.12,2.48847745]